bitfinex-derivatives/quotes_BNBF0:USTF0_20250524
["timestamp","ask_amount","ask_price","bid_price","bid_amount"]
[1748102580474,0.72865773,674.15,673.55,0.55205642]
[1748102580675,0.72866215,674.14,673.55,0.55205642]
[1748102580873,0.72866659,674.13,673.55,0.55205642]
[1748102581076,0.29668308,674.12,673.56,0.55205642]
[1748102581473,0.43269897,674.11,673.56,0.55205642]
[1748102581677,0.29669188,674.1,673.56,0.55205642]
[1748102581981,0.43269772,674.09,673.56,0.55205642]
[1748102582181,0.72939849,674.08,673.57,0.55205642]
[1748102582375,0.29670068,674.08,673.57,0.55205642]
[1748102582581,0.43269787,674.07,673.57,0.55205642]
[1748102582782,0.29670068,674.08,673.57,0.55205642]
[1748102583382,0.43269567,674.07,673.57,0.55205642]
[1748102583579,0.43269727,674.06,673.58,0.55205642]
[1748102583781,0.43269441,674.05,673.58,0.55205642]
[1748102583975,0.43269498,674.04,673.58,0.55205642]
[1748102584181,0.43274527,674.03,673.58,0.55205642]
[1748102584380,0.43274527,674.02,673.58,0.55205642]
[1748102584576,0.29670068,674.08,673.59,0.55205642]
[1748102584882,0.4327456,674.07,673.59,0.55205642]
[1748102585077,0.43274329,674.06,673.59,0.55205642]
[1748102585279,0.43274314,674.05,673.59,0.55205642]
[1748102585479,0.43274342,674.04,673.59,0.55205642]
[1748102585680,0.43274415,674.03,673.59,0.55205642]
[1748102585886,0.43289637,674.02,673.59,0.55205642]
[1748102586086,0.43289554,674.01,673.6,0.55205642]
[1748102586283,0.29670068,674.08,673.6,0.55205642]
[1748102586482,0.43289637,674.07,673.6,0.55205642]
[1748102586687,0.29670068,674.08,673.6,0.55205642]
[1748102586883,0.29670068,674.08,673.61,0.55205642]
[1748102587081,0.4330852,674.07,673.61,0.55205642]
[1748102587286,0.4330852,674.06,673.61,0.55205642]
[1748102587586,0.43308778,674.05,673.62,0.791]
[1748102587787,0.43308698,674.04,673.62,1.34305642]
[1748102587987,0.43308707,674.03,673.62,1.34305642]
[1748102588190,0.29670068,674.08,673.62,1.34305642]
[1748102588584,0.43308707,674.07,673.62,1.34305642]
[1748102588785,0.29670068,674.08,673.62,1.34305642]
[1748102588983,0.43308726,674.07,673.62,1.34305642]
[1748102589188,0.29670068,674.08,673.62,1.34305642]
[1748102589189,0.43308755,674.06,673.63,0.55205642]
[1748102589386,0.43308755,674.05,673.63,0.55205642]
[1748102589585,0.29670068,674.08,673.63,0.55205642]
[1748102589791,0.43308723,674.07,673.63,0.55205642]
[1748102589990,0.29670068,674.08,673.63,0.55205642]
[1748102590184,0.43308798,674.07,673.64,0.55205642]
[1748102590390,0.29670068,674.08,673.64,0.55205642]
[1748102590590,0.43308851,674.07,673.64,0.55205642]
[1748102590787,0.43308851,674.06,673.64,0.55205642]
[1748102590993,0.29670068,674.08,673.64,0.55205642]
[1748102591290,0.43309453,674.07,673.65,0.55205642]
[1748102591487,0.43309345,674.06,673.65,0.55205642]
[1748102591688,0.29670068,674.08,673.65,0.55205642]
[1748102592085,0.43309138,674.07,673.65,0.55205642]
[1748102592290,0.43309121,674.06,673.65,0.55205642]
[1748102592490,0.29670068,674.08,673.65,0.55205642]
[1748102592690,0.4330911,674.07,673.66,0.55205642]
[1748102592992,0.43334766,674.06,673.66,0.55205642]
[1748102593187,0.43382105,674.05,673.66,0.55205642]
[1748102593391,0.29670068,674.08,673.66,0.55205642]
[1748102593592,0.43382093,674.07,673.66,0.55205642]
[1748102593792,0.43382093,674.06,673.66,0.55205642]
[1748102593996,0.29670068,674.08,673.66,0.55205642]
[1748102594195,0.4338223,674.07,673.66,0.55205642]
[1748102594390,0.4338223,674.07,673.62,0.791]
[1748102594391,0.29670068,674.08,673.67,0.55205642]
[1748102594895,0.43381342,674.07,673.67,0.55205642]
[1748102595099,0.29670068,674.08,673.67,0.55205642]
[1748102595395,0.43381331,674.07,673.68,0.55205642]
[1748102595595,0.43381272,674.06,673.68,0.55205642]
[1748102595794,0.433813,674.05,673.68,0.55205642]
[1748102596091,0.29670068,674.08,673.68,0.55205642]
[1748102596295,0.43380915,674.07,673.68,0.55205642]
[1748102596495,0.43380915,674.06,673.69,0.55205642]
[1748102596690,0.29670068,674.08,673.69,0.55205642]
[1748102596892,0.43380915,674.07,673.69,0.55205642]
[1748102597091,0.43383127,674.06,673.69,0.55205642]
[1748102597292,0.43383054,674.05,673.69,0.55205642]
[1748102597494,0.29670068,674.08,673.69,0.55205642]
[1748102597997,0.43383063,674.07,673.69,0.55205642]
[1748102598297,0.43383221,674.06,673.7,0.55205642]
[1748102598490,0.43384225,674.05,673.7,0.55205642]
[1748102598694,0.8677026,674.04,673.7,0.55205642]
[1748102598894,0.43384595,674.04,673.7,0.55205642]
[1748102599094,0.4338628,674.03,673.7,0.55205642]
[1748102599297,0.43384595,674.04,673.71,0.55205642]
[1748102599698,0.43386847,674.03,673.71,0.55205642]
[1748102599902,0.43384595,674.04,673.71,0.55205642]
[1748102600098,0.4338222,674.03,673.71,0.55205642]
[1748102600299,0.43382348,674.02,673.71,0.55205642]
[1748102600601,0.4338236,674.01,673.62,0.791]
[1748102600894,0.4338236,674.0,673.62,0.791]
[1748102601096,0.4338236,673.99,673.62,0.791]
[1748102601293,0.43384595,674.04,673.62,0.791]
[1748102601495,0.4338918,674.03,673.62,0.791]
[1748102601801,0.43384595,674.04,673.63,0.53565668]
[1748102602298,0.43389185,674.03,673.63,0.53565668]
[1748102602502,0.43384595,674.04,673.64,0.53565668]
[1748102603194,0.4341003,674.03,673.64,0.53565668]
[1748102603393,0.4341003,674.02,673.64,0.53565668]
[1748102603599,0.43409961,674.01,673.65,0.53565668]
[1748102603900,0.4340981,674.0,673.65,0.53565668]
[1748102604104,0.43384595,674.04,673.65,0.53565668]
[1748102604403,0.4340981,673.99,673.65,0.53565668]
[1748102604599,0.43409887,673.98,673.65,0.53565668]
[1748102604796,0.4340981,673.99,673.66,0.53565668]
[1748102604997,0.4340996,673.98,673.66,0.53565668]
[1748102605196,0.4340981,673.99,673.66,0.53565668]
[1748102605598,0.43417366,673.98,673.66,0.53565668]
[1748102605800,0.43417366,673.97,673.63,0.53565668]
[1748102606003,0.4340981,673.99,673.63,0.53565668]
[1748102606198,0.43417541,673.98,673.63,0.53565668]
[1748102606405,0.43417541,673.97,673.63,0.53565668]
[1748102606601,0.4340981,673.99,673.63,0.53565668]
[1748102607105,0.43417629,673.98,673.63,0.53565668]
[1748102607406,0.4340981,673.99,673.63,0.53565668]
[1748102607601,0.4340981,673.99,673.62,0.791]
[1748102607602,0.43417781,673.98,673.64,0.53565668]
[1748102607804,0.4340981,673.99,673.64,0.53565668]
[1748102608000,0.43417702,673.98,673.64,0.53565668]
[1748102608205,0.43417702,673.97,673.64,0.53565668]
[1748102608401,0.43417702,673.96,673.64,0.53565668]
[1748102608606,0.43417702,673.95,673.64,0.53565668]
[1748102608806,0.4340981,673.99,673.62,0.791]
[1748102608807,0.4340981,673.99,673.65,0.53565668]
[1748102609011,0.43417239,673.98,673.65,0.53565668]
[1748102609209,0.43417225,673.97,673.65,0.53565668]
[1748102609408,0.4340981,673.99,673.65,0.53565668]
[1748102609909,0.43452651,673.98,673.66,0.53565668]
[1748102610410,0.4341936,673.97,673.66,0.53565668]
[1748102610610,0.43452651,673.98,673.66,0.53565668]
[1748102611111,0.43419739,673.97,673.66,0.53565668]
[1748102611309,0.43452651,673.98,673.66,0.53565668]
[1748102611510,0.43419739,673.97,673.66,0.53565668]
[1748102611710,0.43419739,673.96,673.67,0.53565668]
[1748102611920,0.43419711,673.95,673.67,0.53565668]
[1748102612115,0.43452651,673.98,673.67,0.53565668]
[1748102612316,0.43419711,673.97,673.67,0.53565668]
[1748102612515,0.43419716,673.96,673.67,0.53565668]
[1748102612815,0.43419716,673.95,673.67,0.53565668]
[1748102613018,0.43419716,673.94,673.62,0.791]
[1748102613318,0.43419722,673.93,673.62,0.791]
[1748102613518,0.43452651,673.98,673.62,0.791]
[1748102613918,0.43419869,673.97,673.63,0.53475924]
[1748102614120,0.43419743,673.96,673.63,0.53475924]
[1748102614421,0.43419743,673.95,673.63,0.53475924]
[1748102614624,0.43452651,673.98,673.63,0.53475924]
[1748102614819,0.43419871,673.97,673.63,0.53475924]
[1748102615020,0.43452651,673.98,673.63,0.53475924]
[1748102615215,0.43419798,673.97,673.63,0.53475924]
[1748102615422,0.43452651,673.98,673.64,0.53475924]
[1748102615824,0.43419436,673.97,673.64,0.53475924]
[1748102616018,0.43452651,673.98,673.64,0.53475924]
[1748102616417,0.43419469,673.97,673.65,0.53475924]
[1748102616624,0.43452651,673.98,673.65,0.53475924]
[1748102616821,0.43419469,673.97,673.65,0.53475924]
[1748102617117,0.43419323,673.96,673.65,0.53475924]
[1748102617315,0.43452651,673.98,673.65,0.53475924]
[1748102617518,0.43419323,673.97,673.66,0.53475924]
[1748102617818,0.43452651,673.98,673.66,0.53475924]
[1748102618022,0.43419396,673.97,673.66,0.53475924]
[1748102618223,0.43419396,673.96,673.66,0.53475924]
[1748102618423,0.43452651,673.98,673.67,0.53475924]
[1748102618620,0.43419413,673.97,673.67,0.53475924]
[1748102618817,0.43452651,673.98,673.67,0.53475924]
[1748102619423,0.43410668,673.97,673.67,0.53475924]
[1748102619619,0.43452651,673.98,673.67,0.53475924]
[1748102619819,0.43410945,673.97,673.67,0.53475924]
[1748102620024,0.43410945,673.96,673.62,0.791]
[1748102620222,0.43452651,673.98,673.62,0.791]
[1748102620523,0.43410883,673.97,673.62,0.791]
[1748102620721,0.43410883,673.96,673.63,0.53451182]
[1748102620917,0.43410883,673.95,673.63,0.53451182]
[1748102621122,0.43452651,673.98,673.63,0.53451182]
[1748102621320,0.43410969,673.97,673.63,0.53451182]
[1748102621626,0.43452651,673.98,673.63,0.53451182]
[1748102622024,0.43452651,673.98,673.64,0.53451182]
[1748102622224,0.43410385,673.97,673.64,0.53451182]
[1748102622424,0.43452651,673.98,673.64,0.53451182]
[1748102622621,0.43415513,673.97,673.64,0.53451182]
[1748102622825,0.43415489,673.96,673.64,0.53451182]
[1748102623025,0.43415668,673.95,673.64,0.53451182]
[1748102623220,0.43415668,673.94,673.64,0.53451182]
[1748102623427,0.43412747,673.93,673.65,0.53451182]
[1748102623728,0.43452651,673.98,673.65,0.53451182]
[1748102624326,0.43334418,673.97,673.65,0.53451182]
[1748102624525,0.43334418,673.96,673.66,0.53451182]
[1748102624730,0.43452651,673.98,673.66,0.53451182]
[1748102624927,0.43334719,673.97,673.66,0.53451182]
[1748102625125,0.86669346,673.96,673.66,0.53451182]
[1748102625329,0.43334587,673.95,673.66,0.53451182]
[1748102625528,0.43334673,673.96,673.67,0.53451182]
[1748102625730,0.43334618,673.95,673.67,0.53451182]
[1748102625932,0.43334618,673.94,673.67,0.53451182]
[1748102626131,0.43334893,673.93,673.67,0.53451182]
[1748102626332,0.43334871,673.92,673.67,0.53451182]
[1748102626528,0.43334673,673.96,673.67,0.53451182]
[1748102626730,0.43334312,673.95,673.63,0.53451182]
[1748102627030,0.43334673,673.96,673.63,0.53451182]
[1748102627232,0.43334446,673.95,673.63,0.53451182]
[1748102627427,0.43334673,673.96,673.63,0.53451182]
[1748102627824,0.43334435,673.95,673.63,0.53451182]
[1748102628024,0.43334594,673.94,673.64,0.53451182]
[1748102628228,0.43334589,673.93,673.64,0.53451182]
[1748102628430,0.43334589,673.92,673.64,0.53451182]
[1748102628628,0.43334662,673.91,673.64,0.53451182]
[1748102628829,0.43334662,673.9,673.64,0.53451182]
[1748102629028,0.43334673,673.96,673.64,0.53451182]
[1748102629431,0.43334673,673.96,673.65,0.946]
[1748102629627,0.43334673,673.96,673.65,1.48051182]
[1748102629831,0.43334863,673.95,673.65,1.48051182]
[1748102630030,0.43334999,673.94,673.65,1.48051182]
[1748102630234,0.43335003,673.93,673.65,1.48051182]
[1748102630434,0.43334955,673.92,673.65,1.48051182]
[1748102630733,0.43334673,673.96,673.66,0.53451182]
[1748102631533,0.43332299,673.95,673.66,0.53451182]
[1748102631733,0.43332298,673.94,673.66,0.53451182]
[1748102631935,0.43334673,673.96,673.66,0.53451182]
[1748102632537,0.43332391,673.95,673.66,0.53451182]
[1748102632733,0.43332391,673.94,673.66,0.53451182]
[1748102632939,0.86665576,673.93,673.66,0.53451182]
[1748102633140,0.43333054,673.92,673.66,0.53451182]
[1748102633342,0.43332788,673.93,673.66,0.53451182]
[1748102633542,0.43332523,673.92,673.66,0.53451182]
[1748102633841,0.43332788,673.93,673.66,0.53451182]
[1748102634240,0.43332521,673.92,673.66,0.53451182]
[1748102634439,0.43332788,673.93,673.67,0.53451182]
[1748102634641,0.43332505,673.92,673.67,0.53451182]
[1748102634845,0.43331804,673.91,673.67,0.53451182]
[1748102635045,0.43332233,673.9,673.67,0.53451182]
[1748102635237,0.43332142,673.89,673.67,0.53451182]
[1748102635539,0.43332788,673.93,673.66,0.53451182]
[1748102635745,0.43332147,673.92,673.66,0.53451182]
[1748102636045,0.43332788,673.93,673.66,0.53451182]
[1748102636246,0.4333195,673.92,673.67,0.53451182]
[1748102636447,0.43332788,673.93,673.67,0.53451182]
[1748102636645,0.43331938,673.92,673.67,0.53451182]
[1748102636849,0.43331492,673.91,673.67,0.53451182]
[1748102637043,0.43332788,673.93,673.67,0.53451182]
[1748102637244,0.43331778,673.92,673.68,0.53451182]
[1748102637450,0.43331778,673.91,673.68,0.53451182]
[1748102637642,0.43332788,673.93,673.68,0.53451182]
[1748102638143,0.43338452,673.92,673.68,0.53451182]
[1748102638343,0.43338387,673.91,673.68,0.53451182]
[1748102638549,0.43338566,673.9,673.68,0.53451182]
[1748102638853,0.43332788,673.93,673.68,0.53451182]
[1748102639241,0.43332788,673.93,673.66,0.53451182]
[1748102639942,0.4333791,673.92,673.66,0.53451182]
[1748102640142,0.43332788,673.93,673.66,0.53451182]
[1748102640343,0.4333791,673.92,673.67,0.53451182]
[1748102640548,0.43332788,673.93,673.67,0.53451182]
[1748102640742,0.43339561,673.92,673.67,0.53451182]
[1748102640942,0.43332788,673.93,673.67,0.53451182]
[1748102641143,0.43339561,673.92,673.67,0.53451182]
[1748102641346,0.43339389,673.91,673.66,0.53451182]
[1748102641542,0.43339389,673.9,673.66,0.53451182]
[1748102641745,0.43339616,673.89,673.66,0.53451182]
[1748102641945,0.43332788,673.93,673.66,0.53451182]
[1748102642145,0.43341616,673.92,673.66,0.53451182]
[1748102642344,0.43341321,673.91,673.66,0.53451182]
[1748102642546,0.43341582,673.9,673.66,0.53451182]
[1748102642747,0.43332788,673.93,673.66,0.53451182]
[1748102642953,0.43341494,673.92,673.66,0.53451182]
[1748102643150,0.43332788,673.93,673.66,0.53451182]
[1748102643352,0.43341188,673.92,673.66,0.53451182]
[1748102643553,0.43340123,673.91,673.66,0.53451182]
[1748102643853,0.43340123,673.9,673.66,0.53451182]
[1748102644046,0.43332788,673.93,673.66,0.53451182]
[1748102644250,0.43340196,673.92,673.66,0.53451182]
[1748102644450,0.43340123,673.91,673.66,0.53451182]
[1748102644648,0.43340123,673.9,673.66,0.53451182]
[1748102644852,0.43332788,673.93,673.66,0.53451182]
[1748102645049,0.43334156,673.92,673.66,0.53451182]
[1748102645250,0.43334163,673.91,673.66,0.53451182]
[1748102645453,0.43332788,673.93,673.66,0.53451182]
[1748102647256,0.43342686,673.92,673.66,0.53451182]
[1748102647457,0.43345808,673.91,673.66,0.53451182]
[1748102647760,0.43332788,673.93,673.66,0.53451182]
[1748102647761,0.43346068,673.9,673.66,0.53451182]
[1748102647957,0.43332788,673.93,673.66,0.53451182]
[1748102648357,0.43346755,673.92,673.66,0.53451182]
[1748102648656,0.4334669,673.91,673.66,0.53451182]
[1748102648856,0.43346768,673.9,673.66,0.53451182]
[1748102649049,0.43332788,673.93,673.66,0.53451182]
[1748102649255,0.43341416,673.92,673.66,0.53451182]
[1748102649451,0.43341609,673.91,673.66,0.53451182]
[1748102649656,0.4334175,673.9,673.66,0.53451182]
[1748102649856,0.43332788,673.93,673.66,0.53451182]
[1748102650056,0.43341634,673.92,673.66,0.53451182]
[1748102650257,0.43332788,673.93,673.66,0.53451182]
[1748102651054,0.43341776,673.92,673.66,0.53451182]
[1748102651254,0.43332788,673.93,673.66,0.53451182]
[1748102651654,0.43342466,673.92,673.66,0.53451182]
[1748102651854,0.4334174,673.91,673.66,0.53451182]
[1748102652054,0.43332788,673.93,673.66,0.53451182]
[1748102652459,0.43341553,673.92,673.66,0.53451182]
[1748102652655,0.43332788,673.93,673.66,0.53451182]
[1748102652863,0.43341919,673.92,673.66,0.53451182]
[1748102653164,0.43341731,673.91,673.66,0.53451182]
[1748102653362,0.4334185,673.9,673.66,0.53451182]
[1748102653663,0.43332788,673.93,673.66,0.53451182]
[1748102653855,0.43341632,673.92,673.66,0.53451182]
[1748102654068,0.43341621,673.91,673.66,0.53451182]
[1748102654256,0.43332788,673.93,673.66,0.53451182]
[1748102654657,0.43341495,673.92,673.66,0.53451182]
[1748102654861,0.43341552,673.91,673.66,0.53451182]
[1748102655059,0.43341076,673.9,673.66,0.53451182]
[1748102655259,0.43332788,673.93,673.66,0.53451182]
[1748102655764,0.43341046,673.92,673.66,0.53451182]
[1748102655959,0.43341269,673.91,673.66,0.53451182]
[1748102656161,0.43332788,673.93,673.66,0.53451182]
[1748102656357,0.43341357,673.92,673.66,0.53451182]
[1748102656562,0.43332788,673.93,673.66,0.53451182]
[1748102657466,0.43351687,673.92,673.66,0.53451182]
[1748102657765,0.43351443,673.91,673.66,0.53451182]
[1748102658067,0.43349683,673.9,673.66,0.53451182]
[1748102658261,0.43332788,673.93,673.66,0.53451182]
[1748102659069,0.43340895,673.92,673.66,0.53451182]
[1748102659267,0.43332788,673.93,673.66,0.53451182]
[1748102660668,0.43332788,673.93,673.65,0.946]
[1748102660669,0.43269059,673.92,673.65,0.946]
[1748102660969,0.43269204,673.91,673.65,0.946]
[1748102661170,0.43332788,673.93,673.65,0.946]
[1748102661463,0.43268698,673.92,673.27,0.64747751]
[1748102661660,0.43268698,673.91,673.27,0.64747751]
[1748102661862,0.43332788,673.93,673.28,0.53431553]
[1748102662169,0.43269147,673.92,673.28,0.53431553]
[1748102662363,0.43332788,673.93,673.28,0.53431553]
[1748102662563,0.43271566,673.92,673.28,0.53431553]
[1748102662767,0.43271961,673.91,673.28,0.53431553]
[1748102662964,0.43332788,673.93,673.28,0.53431553]
[1748102663269,0.43332788,673.93,673.32,0.64747751]
[1748102663463,0.4326993,673.92,673.32,0.64747751]
[1748102663662,0.43332788,673.93,673.32,0.64747751]
[1748102663869,0.43270035,673.92,673.32,0.64747751]
[1748102664064,0.43270317,673.91,673.32,0.64747751]
[1748102664264,0.43332788,673.93,673.32,0.64747751]
[1748102664468,0.43332788,673.93,673.33,0.53431553]
[1748102664766,0.43270407,673.92,673.33,1.38031553]
[1748102665074,0.43270296,673.91,673.33,1.38031553]
[1748102665368,0.43274243,673.9,673.33,1.38031553]
[1748102665563,0.43332788,673.93,673.36,0.64747751]
[1748102665769,0.43271102,673.92,673.36,0.64747751]
[1748102665965,0.4327034,673.91,673.36,0.64747751]
[1748102666167,0.43272742,673.9,673.36,0.64747751]
[1748102666368,0.43332788,673.93,673.36,0.64747751]
[1748102666865,0.43332788,673.93,673.37,0.53431553]
[1748102667772,0.43332788,673.93,673.5,0.64747751]
[1748102668070,0.43276781,673.92,673.5,0.64747751]
[1748102668272,0.43277011,673.91,673.5,0.64747751]
[1748102668470,0.43277136,673.9,673.5,0.64747751]
[1748102668670,0.43332788,673.93,673.5,0.64747751]
[1748102668870,0.43276582,673.92,673.5,0.64747751]
[1748102669066,0.43332788,673.93,673.51,0.53431553]
[1748102670574,0.43332788,673.93,673.55,0.64747751]
[1748102671575,0.43332788,673.93,673.56,0.53431553]
[1748102673479,0.43332788,673.93,673.59,0.64747751]
[1748102674678,0.43332788,673.93,673.6,0.53431553]
[1748102676084,0.43332788,673.93,673.62,0.64747751]
[1748102677384,0.43332788,673.93,673.63,0.53431553]
[1748102678383,0.43332788,673.93,673.64,0.53431553]
[1748102679384,0.43332788,673.93,673.65,0.53431553]
[1748102680487,0.43332788,673.93,673.66,0.53431553]
[1748102681783,0.43332788,673.93,673.58,0.53431553]
[1748102683284,0.43332788,673.93,673.59,0.53431553]
[1748102684987,0.43332788,673.93,673.6,0.53431553]
[1748102686387,0.43332788,673.93,673.61,0.53431553]
[1748102687187,0.43332788,673.93,673.62,0.53431553]
[1748102688784,0.43332788,673.93,673.54,0.53431553]
[1748102689993,0.43332788,673.93,673.55,0.53431553]
[1748102691497,0.43332788,673.93,673.56,0.53431553]
[1748102692996,0.43332788,673.93,673.57,0.53431553]
[1748102694801,0.43332788,673.93,673.58,0.53431553]
[1748102695803,0.43332788,673.93,673.59,0.53431553]
[1748102697199,0.43332788,673.93,673.6,0.53431553]
[1748102698202,0.43332788,673.93,673.52,0.53431553]
[1748102699202,0.43332788,673.93,673.53,0.53431553]
[1748102700499,0.43332788,673.93,673.54,0.53431553]
[1748102701906,0.43332788,673.93,673.55,1.18179304]
[1748102703308,0.43332788,673.93,673.56,0.53431553]
[1748102704806,0.43332788,673.93,673.57,0.53431553]
[1748102705809,0.43332788,673.93,673.58,0.53431553]
[1748102707113,0.43332788,673.93,673.52,0.53431553]
[1748102708010,0.43332788,673.93,673.44,0.53431553]
[1748102709107,0.43098191,673.92,673.44,0.53431553]
[1748102709312,0.43332788,673.93,673.44,0.53431553]
[1748102709513,0.43098462,673.92,673.45,0.53431553]
[1748102709813,0.43332788,673.93,673.45,0.53431553]
[1748102710012,0.4309845,673.92,673.45,0.53431553]
[1748102710211,0.43332788,673.93,673.46,0.53431553]
[1748102710507,0.43098447,673.92,673.46,0.53431553]
[1748102710711,0.43332788,673.93,673.46,0.53431553]
[1748102711011,0.43098308,673.92,673.46,0.53431553]
[1748102711211,0.43332788,673.93,673.46,0.53431553]
[1748102711412,0.43332788,673.93,673.47,0.53431553]
[1748102712511,0.43332788,673.93,673.48,0.53431553]
[1748102714110,0.43332788,673.93,673.49,0.53431553]
[1748102715314,0.43096735,673.92,673.49,0.53431553]
[1748102715515,0.43096857,673.91,673.49,0.53431553]
[1748102715713,0.43332788,673.93,673.45,0.53431553]
[1748102715908,0.43096762,673.92,673.45,0.53431553]
[1748102716217,0.43097344,673.91,673.45,0.53431553]
[1748102716415,0.43097353,673.9,673.45,0.53431553]
[1748102716614,0.43097353,673.89,673.45,0.53431553]
[1748102716914,0.43332788,673.93,673.45,0.53431553]
[1748102717114,0.43097353,673.92,673.45,0.53431553]
[1748102717314,0.43097295,673.91,673.45,0.53431553]
[1748102717510,0.43097299,673.9,673.45,0.53431553]
[1748102717714,0.43332788,673.93,673.45,0.53431553]
[1748102717916,0.43097395,673.92,673.45,0.53431553]
[1748102718116,0.43332788,673.93,673.45,0.53431553]
[1748102718511,0.43097921,673.92,673.45,0.53431553]
[1748102718718,0.43097921,673.91,673.45,0.53431553]
[1748102718917,0.43097767,673.9,673.45,0.53431553]
[1748102719117,0.43098054,673.89,673.45,0.53431553]
[1748102719319,0.43098484,673.88,673.45,0.53431553]
[1748102719518,0.43099103,673.87,673.45,0.53431553]
[1748102719720,0.43332788,673.93,673.45,0.53431553]
[1748102720223,0.43100661,673.92,673.45,0.53431553]
[1748102720418,0.43100744,673.91,673.45,0.53431553]
[1748102720618,0.43244843,673.9,673.45,0.53431553]
[1748102720817,0.43244855,673.89,673.45,0.53431553]
[1748102721018,0.43332788,673.93,673.45,0.53431553]
[1748102721317,0.43244823,673.92,673.45,0.53431553]
[1748102721518,0.43245095,673.91,673.45,0.53431553]
[1748102721818,0.43245096,673.9,673.45,0.53431553]
[1748102722020,0.43332788,673.93,673.45,0.53431553]
[1748102722021,0.43154662,673.89,673.45,0.53431553]
[1748102722218,0.43154636,673.88,673.45,0.53431553]
[1748102722412,0.43154741,673.87,673.45,0.53431553]
[1748102722617,0.43332788,673.93,673.45,0.53431553]
[1748102723215,0.43154734,673.92,673.45,0.53431553]
[1748102723419,0.4315473,673.91,673.45,0.53431553]
[1748102723719,0.43155952,673.9,673.45,0.53431553]
[1748102723920,0.43155555,673.89,673.45,0.53431553]
[1748102724220,0.43332788,673.93,673.45,0.53431553]
[1748102724420,0.43156736,673.92,673.45,0.53431553]
[1748102724620,0.43332788,673.93,673.45,0.53431553]
[1748102724818,0.43156736,673.92,673.45,0.53431553]
[1748102725013,0.43156736,673.91,673.45,0.53431553]
[1748102725216,0.43332788,673.93,673.45,0.53431553]
[1748102725422,0.43152144,673.92,673.45,0.53431553]
[1748102725621,0.43152144,673.91,673.45,0.53431553]
[1748102725815,0.43152144,673.9,673.45,0.53431553]
[1748102726016,0.43152144,673.89,673.45,0.53431553]
[1748102726322,0.43152017,673.88,673.45,0.53431553]
[1748102726522,0.43152017,673.87,673.45,0.53431553]
[1748102726723,0.43152057,673.86,673.45,0.53431553]
[1748102727024,0.43151932,673.85,673.45,0.53431553]
[1748102727321,0.43332788,673.93,673.45,0.53431553]
[1748102727917,0.43147116,673.92,673.3,0.53431553]
[1748102728122,0.43140313,673.91,673.3,0.53431553]
[1748102728318,0.29677113,673.92,673.3,0.53431553]
[1748102728523,0.43138657,673.91,673.3,0.53431553]
[1748102728718,0.43138045,673.9,673.3,0.53431553]
[1748102729025,0.72813326,673.89,673.3,0.53431553]
[1748102729223,0.72812998,673.88,673.3,0.53431553]
[1748102729523,0.43134741,673.87,673.31,0.53431553]
[1748102729724,0.29678874,673.88,673.31,0.53431553]
[1748102730024,0.43134519,673.87,673.31,0.53431553]
[1748102730224,0.43134519,673.86,673.31,1.29131553]
[1748102730423,0.43134515,673.85,673.31,1.29131553]
[1748102730617,0.43134429,673.84,673.31,1.29131553]
[1748102730819,0.43134429,673.83,673.31,1.29131553]
[1748102731019,0.29678874,673.88,673.32,0.53431553]
[1748102731218,0.43134309,673.87,673.32,0.53431553]
[1748102731423,0.29678874,673.88,673.32,0.53431553]
[1748102731625,0.43134557,673.87,673.32,0.53431553]
[1748102731818,0.43134557,673.86,673.32,0.53431553]
[1748102732019,0.43134717,673.85,673.33,0.53431553]
[1748102732220,0.43134875,673.84,673.33,0.53431553]
[1748102732425,0.43134721,673.83,673.33,0.53431553]
[1748102732618,0.43134791,673.82,673.33,0.53431553]
[1748102732819,0.29678874,673.88,673.33,0.53431553]
[1748102733218,0.43135177,673.87,673.33,0.53431553]
[1748102733422,0.29678874,673.88,673.33,0.53431553]
[1748102733623,0.43125222,673.87,673.33,0.53431553]
[1748102733825,0.43125276,673.86,673.34,0.53431553]
[1748102734023,0.43125497,673.85,673.34,0.53431553]
[1748102734227,0.43124579,673.84,673.34,0.53431553]
[1748102734426,0.29678874,673.88,673.34,0.53431553]
[1748102734821,0.43034025,673.87,673.35,0.53431553]
[1748102735025,0.43034027,673.86,673.35,0.53431553]
[1748102735220,0.29678874,673.88,673.35,0.53431553]
[1748102735422,0.4303412,673.87,673.35,0.53431553]
[1748102735621,0.29678874,673.88,673.35,0.53431553]
[1748102735820,0.43034024,673.87,673.35,0.53431553]
[1748102736026,0.4303419,673.86,673.35,0.53431553]
[1748102736225,0.29678874,673.88,673.35,0.53431553]
[1748102736426,0.43034153,673.87,673.35,0.53431553]
[1748102736626,0.29678874,673.88,673.35,0.53431553]
[1748102736826,0.43040007,673.87,673.36,0.53431553]
[1748102737026,0.29678874,673.88,673.36,0.53431553]
[1748102737027,0.43039893,673.86,673.36,0.53431553]
[1748102737226,0.43039978,673.85,673.36,0.53431553]
[1748102737428,0.43040127,673.84,673.36,0.53431553]
[1748102737630,0.29678874,673.88,673.36,0.53431553]
[1748102738022,0.43040331,673.87,673.36,0.53431553]
[1748102738322,0.43040488,673.86,673.37,0.53431553]
[1748102738522,0.29678874,673.88,673.37,0.53431553]
[1748102739122,0.29678874,673.88,673.38,0.53431553]